[Event "Titled Tuesday Blitz March 21 Early 2023"]
[White "Karthik Rajaa"]
[Black "Sarana, Alexey"]
[WhiteFideId "25035215"]
[BlackFideId "24133795"]
[WhiteElo "2215"]
[BlackElo "2714"]
[Result "0-1"]
[Round "04"]
[TimeControl "180+2"]
[Date "2023.03.21"]
[WhiteClock "0:00:03"]
[BlackClock "0:01:08"]

1. Nf3 {[%clk 0:03:00]}  d5 {[%clk 0:02:38]} 2. d4 {[%clk 0:02:58]}  Nf6 {[%clk 0:02:36]} 3. c4 {[%clk 0:02:59]}  e6 {[%clk 0:02:37]} 4. Nc3 {[%clk 0:02:58]}  Be7 {[%clk 0:02:35]} 5. Bf4 {[%clk 0:02:58]}  O-O {[%clk 0:02:33]} 6. e3 {[%clk 0:02:58]}  Nbd7 {[%clk 0:02:30]} 7. cxd5 {[%clk 0:02:56]}  exd5 {[%clk 0:02:29]} 8. Bd3 {[%clk 0:02:55]}  c6 {[%clk 0:02:27]} 9. h3 {[%clk 0:02:54]}  Nb6 {[%clk 0:02:24]} 10. O-O {[%clk 0:02:53]}  Bd6 {[%clk 0:02:24]} 11. Be5 {[%clk 0:02:36]}  Qe7 {[%clk 0:02:22]} 12. Qc2 {[%clk 0:02:33]}  h6 {[%clk 0:02:22]} 13. Rfe1 {[%clk 0:02:32]}  Be6 {[%clk 0:02:22]} 14. a3 {[%clk 0:01:55]}  Bxe5 {[%clk 0:02:16]} 15. Nxe5 {[%clk 0:01:54]}  Nfd7 {[%clk 0:02:17]} 16. Nf3 {[%clk 0:01:50]}  Nc8 {[%clk 0:02:13]} 17. e4 {[%clk 0:01:45]}  dxe4 {[%clk 0:02:12]} 18. Bxe4 {[%clk 0:01:45]}  Qd6 {[%clk 0:01:55]} 19. Rad1 {[%clk 0:01:40]}  Nf6 {[%clk 0:01:55]} 20. Bf5 {[%clk 0:01:34]}  Bxf5 {[%clk 0:01:52]} 21. Qxf5 {[%clk 0:01:35]}  Nb6 {[%clk 0:01:43]} 22. Ne5 {[%clk 0:01:10]}  Rad8 {[%clk 0:01:41]} 23. Re3 {[%clk 0:00:59]}  Rfe8 {[%clk 0:01:40]} 24. Rg3 {[%clk 0:00:56]}  Qe6 {[%clk 0:01:41]} 25. Qf4 {[%clk 0:00:44]}  Nh5 {[%clk 0:01:37]} 26. Qf3 {[%clk 0:00:39]}  Nxg3 {[%clk 0:01:37]} 27. Qxg3 {[%clk 0:00:40]}  Nc4 {[%clk 0:01:36]} 28. Nxc4 {[%clk 0:00:22]}  Qxc4 {[%clk 0:01:37]} 29. Qg4 {[%clk 0:00:16]}  Qb3 {[%clk 0:01:35]} 30. Rd2 {[%clk 0:00:14]}  Re1+ {[%clk 0:01:35]} 31. Kh2 {[%clk 0:00:14]}  Qe6 {[%clk 0:01:36]} 32. Qh4 {[%clk 0:00:12]}  Qf6 {[%clk 0:01:30]} 33. Qxf6 {[%clk 0:00:10]}  gxf6 {[%clk 0:01:31]} 34. d5 {[%clk 0:00:11]}  cxd5 {[%clk 0:01:28]} 35. Rd4 {[%clk 0:00:11]}  Kg7 {[%clk 0:01:24]} 36. Kg3 {[%clk 0:00:11]}  h5 {[%clk 0:01:24]} 37. h4 {[%clk 0:00:11]}  a6 {[%clk 0:01:23]} 38. f3 {[%clk 0:00:11]}  Re6 {[%clk 0:01:23]} 39. Kf2 {[%clk 0:00:10]}  Rc6 {[%clk 0:01:23]} 40. Ke3 {[%clk 0:00:09]}  Rc4 {[%clk 0:01:23]} 41. Nxd5 {[%clk 0:00:04]}  Re8+ {[%clk 0:01:21]} 42. Kd3 {[%clk 0:00:02]}  Rxd4+ {[%clk 0:01:22]} 43. Kxd4 {[%clk 0:00:03]}  Re2 {[%clk 0:01:22]} 44. Nf4 {[%clk 0:00:03]}  Rxb2 {[%clk 0:01:22]} 45. Nxh5+ {[%clk 0:00:04]}  Kh6 {[%clk 0:01:23]} 46. Nf4 {[%clk 0:00:04]}  Ra2 {[%clk 0:01:23]} 47. g4 {[%clk 0:00:01]}  Rxa3 {[%clk 0:01:23]} 48. Ke4 {[%clk 0:00:02]}  Ra4+ {[%clk 0:01:23]} 49. Kf5 {[%clk 0:00:03]}  Ra3 {[%clk 0:01:09]} 50. Ke4 {[%clk 0:00:03]}  a5 {[%clk 0:01:09]} 51. Nd5 {[%clk 0:00:03]}  a4 {[%clk 0:01:08]} 52. Nxf6 {[%clk 0:00:03]}  Ra1 {[%clk 0:01:07]} 53. g5+ {[%clk 0:00:04]}  Kg6 {[%clk 0:01:06]} 54. f4 {[%clk 0:00:03]}  Re1+ {[%clk 0:01:06]} 55. Kd3 {[%clk 0:00:02]}  a3 {[%clk 0:01:06]} 56. h5+ {[%clk 0:00:03]}  Kf5 {[%clk 0:01:07]} 57. h6 {[%clk 0:00:03]}  a2 {[%clk 0:01:07]} 58. h7 {[%clk 0:00:03]}  Rh1 {[%clk 0:01:08]} 0-1


[Site "https://www.chess.com"]

[Event "Titled Tuesday Blitz March 21 Early 2023"]
[White "Larino Nieto, David"]
[Black "Tsydypov, Zhamsaran"]
[WhiteFideId "2256444"]
[BlackFideId "4108566"]
[WhiteElo "2506"]
[BlackElo "2584"]
[Result "0-1"]
[Round "04"]
[TimeControl "180+2"]
[Date "2023.03.21"]
[WhiteClock "0:00:04"]
[BlackClock "0:01:19"]

1. e4 {[%clk 0:03:00]}  c5 {[%clk 0:02:57]} 2. Nc3 {[%clk 0:03:01]}  d6 {[%clk 0:02:57]} 3. g3 {[%clk 0:03:01]}  Nc6 {[%clk 0:02:55]} 4. Bg2 {[%clk 0:03:02]}  g6 {[%clk 0:02:56]} 5. d3 {[%clk 0:03:02]}  Bg7 {[%clk 0:02:56]} 6. f4 {[%clk 0:03:02]}  Rb8 {[%clk 0:02:57]} 7. h3 {[%clk 0:02:58]}  b5 {[%clk 0:02:56]} 8. Nf3 {[%clk 0:02:59]}  e6 {[%clk 0:02:54]} 9. O-O {[%clk 0:02:58]}  Nge7 {[%clk 0:02:54]} 10. a3 {[%clk 0:02:57]}  O-O {[%clk 0:02:54]} 11. g4 {[%clk 0:02:55]}  f5 {[%clk 0:02:54]} 12. exf5 {[%clk 0:02:49]}  exf5 {[%clk 0:02:52]} 13. g5 {[%clk 0:02:45]}  Be6 {[%clk 0:02:51]} 14. h4 {[%clk 0:02:43]}  Bf7 {[%clk 0:02:48]} 15. h5 {[%clk 0:02:43]}  gxh5 {[%clk 0:02:47]} 16. Nh4 {[%clk 0:02:38]}  Nd4 {[%clk 0:02:46]} 17. Ne2 {[%clk 0:02:32]}  Ng6 {[%clk 0:02:40]} 18. Nf3 {[%clk 0:02:26]}  Nxe2+ {[%clk 0:02:38]} 19. Qxe2 {[%clk 0:02:26]}  Re8 {[%clk 0:02:39]} 20. Qf2 {[%clk 0:02:19]}  b4 {[%clk 0:02:34]} 21. axb4 {[%clk 0:02:18]}  Rxb4 {[%clk 0:02:33]} 22. c3 {[%clk 0:02:11]}  Rxf4 {[%clk 0:02:33]} 23. Bxf4 {[%clk 0:02:11]}  Nxf4 {[%clk 0:02:33]} 24. Nh4 {[%clk 0:01:46]}  Be5 {[%clk 0:02:22]} 25. Kh1 {[%clk 0:01:11]}  Qxg5 {[%clk 0:02:16]} 26. Be4 {[%clk 0:00:51]}  Nxd3 {[%clk 0:02:02]} 27. Qg2 {[%clk 0:00:44]}  Qxg2+ {[%clk 0:01:59]} 28. Bxg2 {[%clk 0:00:45]}  f4 {[%clk 0:01:53]} 29. Rxa7 {[%clk 0:00:40]}  Bc4 {[%clk 0:01:49]} 30. Be4 {[%clk 0:00:34]}  Kf8 {[%clk 0:01:30]} 31. b3 {[%clk 0:00:25]}  Bf6 {[%clk 0:01:28]} 32. Bxh7 {[%clk 0:00:21]}  Bd5+ {[%clk 0:01:24]} 33. Nf3 {[%clk 0:00:14]}  Ne1 {[%clk 0:01:21]} 34. c4 {[%clk 0:00:06]}  Bxf3+ {[%clk 0:01:20]} 35. Kh2 {[%clk 0:00:06]}  Re2+ {[%clk 0:01:19]} 36. Kh3 {[%clk 0:00:04]}  Bg4# {[%clk 0:01:19]} 0-1


[Site "https://www.chess.com"]

[Event "Titled Tuesday Blitz March 21 Early 2023"]
[White "Van Foreest, Jorden"]
[Black "Hamitevici, Vladimir"]
[WhiteFideId "1039784"]
[BlackFideId "13902393"]
[WhiteElo "2633"]
[BlackElo "2401"]
[Result "1-0"]
[Round "04"]
[TimeControl "180+2"]
[Date "2023.03.21"]
[WhiteClock "0:00:46"]
[BlackClock "0:00:02"]

1. e4 {[%clk 0:03:00]}  e5 {[%clk 0:02:54]} 2. Nf3 {[%clk 0:03:00]}  Nc6 {[%clk 0:02:52]} 3. Bb5 {[%clk 0:03:00]}  a6 {[%clk 0:02:50]} 4. Ba4 {[%clk 0:03:01]}  Nge7 {[%clk 0:02:47]} 5. Nc3 {[%clk 0:02:49]}  d6 {[%clk 0:02:45]} 6. a3 {[%clk 0:02:48]}  Bd7 {[%clk 0:02:40]} 7. Bb3 {[%clk 0:02:47]}  Ng6 {[%clk 0:02:40]} 8. h4 {[%clk 0:02:36]}  h6 {[%clk 0:02:19]} 9. d3 {[%clk 0:02:23]}  Be7 {[%clk 0:02:16]} 10. h5 {[%clk 0:02:23]}  Nf8 {[%clk 0:02:12]} 11. Nd5 {[%clk 0:02:23]}  Ne6 {[%clk 0:02:09]} 12. c3 {[%clk 0:02:24]}  Bg5 {[%clk 0:01:37]} 13. Nxg5 {[%clk 0:02:20]}  hxg5 {[%clk 0:01:38]} 14. g3 {[%clk 0:02:20]}  Ne7 {[%clk 0:01:26]} 15. Ne3 {[%clk 0:02:06]}  Nc5 {[%clk 0:01:19]} 16. Bc2 {[%clk 0:02:05]}  Ng8 {[%clk 0:00:36]} 17. d4 {[%clk 0:02:03]}  Ne6 {[%clk 0:00:36]} 18. Nf5 {[%clk 0:01:24]}  g6 {[%clk 0:00:32]} 19. Ne3 {[%clk 0:01:18]}  Nf6 {[%clk 0:00:32]} 20. h6 {[%clk 0:01:15]}  Qe7 {[%clk 0:00:28]} 21. d5 {[%clk 0:01:04]}  Nf8 {[%clk 0:00:25]} 22. Bd2 {[%clk 0:01:02]}  O-O-O {[%clk 0:00:20]} 23. Qe2 {[%clk 0:01:02]}  Ng8 {[%clk 0:00:20]} 24. Bd3 {[%clk 0:01:01]}  Kb8 {[%clk 0:00:19]} 25. Nc4 {[%clk 0:00:57]}  Bb5 {[%clk 0:00:12]} 26. a4 {[%clk 0:00:49]}  Bxc4 {[%clk 0:00:11]} 27. Bxc4 {[%clk 0:00:50]}  Qd7 {[%clk 0:00:12]} 28. Ra3 {[%clk 0:00:49]}  Qc8 {[%clk 0:00:06]} 29. Rb3 {[%clk 0:00:49]}  Ka8 {[%clk 0:00:07]} 30. Bxa6 {[%clk 0:00:49]}  bxa6 {[%clk 0:00:08]} 31. Qc4 {[%clk 0:00:49]}  c5 {[%clk 0:00:07]} 32. dxc6 {[%clk 0:00:49]}  Ne7 {[%clk 0:00:05]} 33. Rb6 {[%clk 0:00:47]}  Ka7 {[%clk 0:00:02]} 34. Be3 {[%clk 0:00:47]}  d5 {[%clk 0:00:02]} 35. Rb7+ {[%clk 0:00:45]}  Ka8 {[%clk 0:00:02]} 36. Qxa6# {[%clk 0:00:46]} 1-0


[Site "https://www.chess.com"]

[Event "Titled Tuesday Blitz March 21 Early 2023"]
[White "Gholami Orimi, Mahdi"]
[Black "Korchmar, Vasiliy"]
[WhiteFideId "12558486"]
[BlackFideId "24131750"]
[WhiteElo "2363"]
[BlackElo "2370"]
[Result "1-0"]
[Round "04"]
[TimeControl "180+2"]
[Date "2023.03.21"]
[WhiteClock "0:00:34"]
[BlackClock "0:00:01"]

1. d4 {[%clk 0:02:55]}  d5 {[%clk 0:02:59]} 2. Nf3 {[%clk 0:02:56]}  Nf6 {[%clk 0:03:00]} 3. Bf4 {[%clk 0:02:56]}  c5 {[%clk 0:03:00]} 4. c3 {[%clk 0:02:56]}  Nc6 {[%clk 0:03:00]} 5. e3 {[%clk 0:02:57]}  Qb6 {[%clk 0:02:59]} 6. Qc1 {[%clk 0:02:45]}  Bf5 {[%clk 0:02:58]} 7. Nbd2 {[%clk 0:02:45]}  e6 {[%clk 0:02:58]} 8. h3 {[%clk 0:02:44]}  Rc8 {[%clk 0:02:58]} 9. Be2 {[%clk 0:02:36]}  cxd4 {[%clk 0:02:52]} 10. exd4 {[%clk 0:02:32]}  h6 {[%clk 0:02:48]} 11. O-O {[%clk 0:02:32]}  Be7 {[%clk 0:02:49]} 12. Re1 {[%clk 0:02:29]}  O-O {[%clk 0:02:49]} 13. a3 {[%clk 0:02:09]}  a6 {[%clk 0:02:49]} 14. Ne5 {[%clk 0:02:06]}  Nxd4 {[%clk 0:02:47]} 15. Bd1 {[%clk 0:02:04]}  Nc6 {[%clk 0:02:43]} 16. Ndf3 {[%clk 0:02:04]}  Nxe5 {[%clk 0:02:39]} 17. Nxe5 {[%clk 0:02:04]}  d4 {[%clk 0:02:36]} 18. c4 {[%clk 0:02:03]}  d3 {[%clk 0:02:26]} 19. b4 {[%clk 0:02:01]}  a5 {[%clk 0:02:21]} 20. c5 {[%clk 0:01:57]}  Qb5 {[%clk 0:02:17]} 21. Bd2 {[%clk 0:01:53]}  Bxc5 {[%clk 0:01:54]} 22. bxc5 {[%clk 0:01:36]}  Rxc5 {[%clk 0:01:55]} 23. Bc3 {[%clk 0:01:37]}  Rfc8 {[%clk 0:01:51]} 24. Qb2 {[%clk 0:01:36]}  Ne4 {[%clk 0:00:59]} 25. a4 {[%clk 0:01:09]}  Qxb2 {[%clk 0:00:23]} 26. Bxb2 {[%clk 0:01:10]}  Nc3 {[%clk 0:00:17]} 27. Bxc3 {[%clk 0:01:01]}  Rxc3 {[%clk 0:00:17]} 28. Nf3 {[%clk 0:01:02]}  f6 {[%clk 0:00:14]} 29. g4 {[%clk 0:01:02]}  Bg6 {[%clk 0:00:11]} 30. Rxe6 {[%clk 0:01:02]}  Rc1 {[%clk 0:00:10]} 31. Rxc1 {[%clk 0:01:01]}  Rxc1 {[%clk 0:00:11]} 32. Re1 {[%clk 0:01:02]}  Kf8 {[%clk 0:00:03]} 33. Bb3 {[%clk 0:00:54]}  Rxe1+ {[%clk 0:00:03]} 34. Nxe1 {[%clk 0:00:55]}  Be4 {[%clk 0:00:01]} 35. Ng2 {[%clk 0:00:46]}  Ke7 {[%clk 0:00:01]} 36. Bd1 {[%clk 0:00:41]}  Kd6 {[%clk 0:00:01]} 37. f3 {[%clk 0:00:42]}  Bg6 {[%clk 0:00:01]} 38. Kf2 {[%clk 0:00:42]}  Kc5 {[%clk 0:00:01]} 39. Ke3 {[%clk 0:00:43]}  Kb4 {[%clk 0:00:01]} 40. Nf4 {[%clk 0:00:43]}  Bh7 {[%clk 0:00:01]} 41. Kd4 {[%clk 0:00:34]} 1-0


[Site "https://www.chess.com"]

[Event "Titled Tuesday Blitz March 21 Early 2023"]
[White "Drygalov, Sergey"]
[Black "De Silva, L M S T"]
[WhiteFideId "24171743"]
[BlackFideId "9953698"]
[WhiteElo "2533"]
[BlackElo "2403"]
[Result "1-0"]
[Round "04"]
[TimeControl "180+2"]
[Date "2023.03.21"]
[WhiteClock "0:00:37"]
[BlackClock "0:00:13"]

1. d4 {[%clk 0:03:00]}  Nf6 {[%clk 0:03:00]} 2. c4 {[%clk 0:03:01]}  e6 {[%clk 0:03:00]} 3. Nc3 {[%clk 0:03:01]}  Bb4 {[%clk 0:02:59]} 4. Qc2 {[%clk 0:03:01]}  O-O {[%clk 0:02:56]} 5. e4 {[%clk 0:02:56]}  d5 {[%clk 0:02:56]} 6. e5 {[%clk 0:02:57]}  Ne4 {[%clk 0:02:55]} 7. Bd3 {[%clk 0:02:57]}  c5 {[%clk 0:02:52]} 8. Ne2 {[%clk 0:02:57]}  cxd4 {[%clk 0:02:41]} 9. Nxd4 {[%clk 0:02:55]}  Nc6 {[%clk 0:02:41]} 10. Nxc6 {[%clk 0:02:54]}  bxc6 {[%clk 0:02:42]} 11. O-O {[%clk 0:02:54]}  f5 {[%clk 0:02:35]} 12. exf6 {[%clk 0:02:51]}  Nxf6 {[%clk 0:02:35]} 13. Bg5 {[%clk 0:02:51]}  d4 {[%clk 0:02:31]} 14. Ne4 {[%clk 0:02:33]}  Qe7 {[%clk 0:02:14]} 15. c5 {[%clk 0:02:22]}  Ba5 {[%clk 0:02:05]} 16. a3 {[%clk 0:02:16]}  Bc7 {[%clk 0:02:05]} 17. f4 {[%clk 0:02:15]}  e5 {[%clk 0:02:00]} 18. f5 {[%clk 0:02:13]}  Kh8 {[%clk 0:01:57]} 19. Rf3 {[%clk 0:02:05]}  Qf7 {[%clk 0:01:54]} 20. Raf1 {[%clk 0:01:58]}  Nd5 {[%clk 0:01:49]} 21. f6 {[%clk 0:01:52]}  Nf4 {[%clk 0:01:25]} 22. Bxf4 {[%clk 0:01:43]}  exf4 {[%clk 0:01:24]} 23. Ng5 {[%clk 0:01:44]}  Qh5 {[%clk 0:01:00]} 24. Nxh7 {[%clk 0:01:43]}  Bg4 {[%clk 0:00:50]} 25. Nxf8 {[%clk 0:01:43]}  Rxf8 {[%clk 0:00:49]} 26. Bg6 {[%clk 0:01:20]}  Qg5 {[%clk 0:00:38]} 27. f7 {[%clk 0:01:16]}  Qe5 {[%clk 0:00:08]} 28. Qd3 {[%clk 0:00:51]}  Bxf3 {[%clk 0:00:05]} 29. Qxf3 {[%clk 0:00:51]}  Qe3+ {[%clk 0:00:05]} 30. Qxe3 {[%clk 0:00:51]}  dxe3 {[%clk 0:00:06]} 31. Rf3 {[%clk 0:00:51]}  Rxf7 {[%clk 0:00:05]} 32. Bxf7 {[%clk 0:00:50]}  g5 {[%clk 0:00:06]} 33. Bc4 {[%clk 0:00:45]}  g4 {[%clk 0:00:06]} 34. Rf1 {[%clk 0:00:45]}  Kg7 {[%clk 0:00:07]} 35. h3 {[%clk 0:00:43]}  gxh3 {[%clk 0:00:06]} 36. gxh3 {[%clk 0:00:43]}  Kf6 {[%clk 0:00:07]} 37. Kg2 {[%clk 0:00:43]}  Ke5 {[%clk 0:00:07]} 38. Kf3 {[%clk 0:00:40]}  Kd4 {[%clk 0:00:08]} 39. Be2 {[%clk 0:00:40]}  Kxc5 {[%clk 0:00:09]} 40. h4 {[%clk 0:00:40]}  a5 {[%clk 0:00:10]} 41. h5 {[%clk 0:00:41]}  a4 {[%clk 0:00:11]} 42. h6 {[%clk 0:00:41]}  Kb6 {[%clk 0:00:12]} 43. h7 {[%clk 0:00:40]}  c5 {[%clk 0:00:13]} 44. h8=Q {[%clk 0:00:39]}  c4 {[%clk 0:00:14]} 45. Qd4+ {[%clk 0:00:39]}  Kb7 {[%clk 0:00:14]} 46. Qd5+ {[%clk 0:00:40]}  Ka7 {[%clk 0:00:14]} 47. Qc5+ {[%clk 0:00:40]}  Kb7 {[%clk 0:00:14]} 48. Bxc4 {[%clk 0:00:38]}  Kb8 {[%clk 0:00:14]} 49. Qe7 {[%clk 0:00:37]}  e2 {[%clk 0:00:14]} 50. Kxe2 {[%clk 0:00:37]}  f3+ {[%clk 0:00:14]} 51. Kf2 {[%clk 0:00:37]}  Kb7 {[%clk 0:00:15]} 52. Kxf3 {[%clk 0:00:37]}  Kb8 {[%clk 0:00:15]} 53. Qb4+ {[%clk 0:00:37]}  Ka7 {[%clk 0:00:14]} 54. Qxa4+ {[%clk 0:00:37]}  Kb7 {[%clk 0:00:14]} 55. Bd5+ {[%clk 0:00:37]}  Kc8 {[%clk 0:00:14]} 56. Qe8+ {[%clk 0:00:37]}  Bd8 {[%clk 0:00:13]} 57. Rc1+ {[%clk 0:00:37]} 1-0


[Site "https://www.chess.com"]

[Event "Titled Tuesday Blitz March 21 Early 2023"]
[White "Grigoriants, Sergey"]
[Black "Lewtak, Damian"]
[WhiteFideId "4130804"]
[BlackFideId "1141724"]
[WhiteElo "2502"]
[BlackElo "2302"]
[Result "1/2-1/2"]
[Round "04"]
[TimeControl "180+2"]
[Date "2023.03.21"]
[WhiteClock "0:00:07"]
[BlackClock "0:00:14"]

1. d4 {[%clk 0:03:00]}  d5 {[%clk 0:03:00]} 2. c4 {[%clk 0:03:00]}  e6 {[%clk 0:03:00]} 3. Nc3 {[%clk 0:03:00]}  Nf6 {[%clk 0:03:01]} 4. Nf3 {[%clk 0:02:59]}  Bb4 {[%clk 0:03:00]} 5. Bg5 {[%clk 0:02:50]}  O-O {[%clk 0:02:57]} 6. a3 {[%clk 0:02:47]}  Bxc3+ {[%clk 0:02:46]} 7. bxc3 {[%clk 0:02:48]}  h6 {[%clk 0:02:47]} 8. Bxf6 {[%clk 0:02:48]}  Qxf6 {[%clk 0:02:46]} 9. e3 {[%clk 0:02:47]}  c5 {[%clk 0:02:43]} 10. g4 {[%clk 0:02:41]}  Nc6 {[%clk 0:02:38]} 11. h4 {[%clk 0:02:41]}  Qe7 {[%clk 0:02:29]} 12. g5 {[%clk 0:02:39]}  h5 {[%clk 0:02:28]} 13. Rb1 {[%clk 0:01:50]}  g6 {[%clk 0:02:24]} 14. Bd3 {[%clk 0:01:28]}  b6 {[%clk 0:02:20]} 15. a4 {[%clk 0:01:20]}  dxc4 {[%clk 0:02:11]} 16. Bxc4 {[%clk 0:01:20]}  Bb7 {[%clk 0:02:06]} 17. Qe2 {[%clk 0:01:18]}  Rad8 {[%clk 0:01:47]} 18. Rg1 {[%clk 0:01:05]}  Qc7 {[%clk 0:01:36]} 19. Bb5 {[%clk 0:00:58]}  Ne7 {[%clk 0:01:23]} 20. Ne5 {[%clk 0:00:53]}  Nf5 {[%clk 0:01:23]} 21. Bd3 {[%clk 0:00:44]}  Nxh4 {[%clk 0:01:17]} 22. Kf1 {[%clk 0:00:42]}  Rd5 {[%clk 0:01:02]} 23. a5 {[%clk 0:00:38]}  Rxe5 {[%clk 0:00:55]} 24. axb6 {[%clk 0:00:36]}  axb6 {[%clk 0:00:43]} 25. dxe5 {[%clk 0:00:36]}  Nf3 {[%clk 0:00:41]} 26. Rg3 {[%clk 0:00:36]}  Nxe5 {[%clk 0:00:37]} 27. Bc2 {[%clk 0:00:32]}  Bd5 {[%clk 0:00:35]} 28. Kg1 {[%clk 0:00:29]}  Ra8 {[%clk 0:00:25]} 29. f4 {[%clk 0:00:28]}  Bc4 {[%clk 0:00:20]} 30. Qg2 {[%clk 0:00:25]}  Nc6 {[%clk 0:00:20]} 31. Be4 {[%clk 0:00:24]}  Rc8 {[%clk 0:00:19]} 32. Bxc6 {[%clk 0:00:17]}  Qxc6 {[%clk 0:00:20]} 33. Qxc6 {[%clk 0:00:17]}  Rxc6 {[%clk 0:00:21]} 34. Rg2 {[%clk 0:00:14]}  Rd6 {[%clk 0:00:21]} 35. Kf2 {[%clk 0:00:13]}  Rd2+ {[%clk 0:00:18]} 36. Kg3 {[%clk 0:00:12]}  Rd3 {[%clk 0:00:17]} 37. Rxb6 {[%clk 0:00:11]}  Rxe3+ {[%clk 0:00:17]} 38. Kh2 {[%clk 0:00:11]}  Rxc3 {[%clk 0:00:17]} 39. Rgb2 {[%clk 0:00:06]}  Bd3 {[%clk 0:00:11]} 40. Rb8+ {[%clk 0:00:06]}  Kg7 {[%clk 0:00:11]} 41. Rd8 {[%clk 0:00:07]}  Rc2+ {[%clk 0:00:11]} 42. Rxc2 {[%clk 0:00:06]}  Bxc2 {[%clk 0:00:12]} 43. Rc8 {[%clk 0:00:07]}  Be4 {[%clk 0:00:12]} 44. Rxc5 {[%clk 0:00:07]}  Bf5 {[%clk 0:00:13]} 45. Kg3 {[%clk 0:00:08]}  Kf8 {[%clk 0:00:12]} 46. Rc7 {[%clk 0:00:08]}  Ke8 {[%clk 0:00:12]} 47. Ra7 {[%clk 0:00:08]}  Kf8 {[%clk 0:00:13]} 48. Rb7 {[%clk 0:00:05]}  Kg7 {[%clk 0:00:13]} 49. Ra7 {[%clk 0:00:06]}  Kf8 {[%clk 0:00:13]} 50. Kf2 {[%clk 0:00:06]}  h4 {[%clk 0:00:13]} 51. Ke3 {[%clk 0:00:06]}  h3 {[%clk 0:00:14]} 52. Kf2 {[%clk 0:00:06]}  Be4 {[%clk 0:00:13]} 53. Kg3 {[%clk 0:00:06]}  Bg2 {[%clk 0:00:13]} 54. Kh2 {[%clk 0:00:06]}  Kg7 {[%clk 0:00:13]} 55. Rc7 {[%clk 0:00:06]}  Kf8 {[%clk 0:00:13]} 56. Ra7 {[%clk 0:00:06]}  Kg7 {[%clk 0:00:14]} 57. Rc7 {[%clk 0:00:07]}  Kf8 {[%clk 0:00:14]} 58. Kg3 {[%clk 0:00:07]}  Kg7 {[%clk 0:00:14]} 59. Ra7 {[%clk 0:00:07]}  Kg8 {[%clk 0:00:14]} 60. Rc7 {[%clk 0:00:06]}  Bf1 {[%clk 0:00:13]} 61. Ra7 {[%clk 0:00:06]}  Kg7 {[%clk 0:00:13]} 62. Rc7 {[%clk 0:00:07]}  Kf8 {[%clk 0:00:13]} 63. Ra7 {[%clk 0:00:06]}  Kg7 {[%clk 0:00:13]} 64. Rc7 {[%clk 0:00:07]}  Kf8 {[%clk 0:00:13]} 65. Ra7 {[%clk 0:00:07]}  Kg7 {[%clk 0:00:14]} 1/2-1/2


[Site "https://www.chess.com"]

[Event "Titled Tuesday Blitz March 21 Early 2023"]
[White "Babazada, Khazar"]
[Black "Chernobay, Artem"]
[WhiteFideId "13413554"]
[BlackFideId "4167406"]
[WhiteElo "2364"]
[BlackElo "2474"]
[Result "1-0"]
[Round "04"]
[TimeControl "180+2"]
[Date "2023.03.21"]
[WhiteClock "0:00:19"]
[BlackClock "0:00:13"]

1. Nf3 {[%clk 0:03:00]}  d6 {[%clk 0:02:58]} 2. d4 {[%clk 0:02:57]}  f5 {[%clk 0:02:56]} 3. c4 {[%clk 0:02:57]}  Nf6 {[%clk 0:02:56]} 4. Nc3 {[%clk 0:02:56]}  g6 {[%clk 0:02:55]} 5. g3 {[%clk 0:02:56]}  Bg7 {[%clk 0:02:55]} 6. Bg2 {[%clk 0:02:57]}  O-O {[%clk 0:02:55]} 7. O-O {[%clk 0:02:57]}  Nc6 {[%clk 0:02:56]} 8. d5 {[%clk 0:02:50]}  Ne5 {[%clk 0:02:55]} 9. Nxe5 {[%clk 0:02:50]}  dxe5 {[%clk 0:02:56]} 10. c5 {[%clk 0:02:48]}  Kh8 {[%clk 0:02:52]} 11. Qb3 {[%clk 0:02:47]}  e4 {[%clk 0:02:48]} 12. Rd1 {[%clk 0:02:44]}  e5 {[%clk 0:02:25]} 13. a4 {[%clk 0:02:20]}  a6 {[%clk 0:01:57]} 14. Qc4 {[%clk 0:02:11]}  Qe8 {[%clk 0:01:50]} 15. b4 {[%clk 0:02:07]}  Bd7 {[%clk 0:01:47]} 16. Bb2 {[%clk 0:02:04]}  g5 {[%clk 0:01:38]} 17. b5 {[%clk 0:02:04]}  e3 {[%clk 0:01:23]} 18. fxe3 {[%clk 0:01:56]}  Ng4 {[%clk 0:01:22]} 19. Qd3 {[%clk 0:01:40]}  e4 {[%clk 0:01:16]} 20. Qd2 {[%clk 0:01:39]}  Qh5 {[%clk 0:01:10]} 21. h3 {[%clk 0:01:38]}  Ne5 {[%clk 0:01:10]} 22. Na2 {[%clk 0:01:27]}  axb5 {[%clk 0:01:06]} 23. axb5 {[%clk 0:01:25]}  Bxb5 {[%clk 0:01:06]} 24. Bd4 {[%clk 0:01:11]}  Qxe2 {[%clk 0:00:50]} 25. Qxe2 {[%clk 0:00:52]}  Bxe2 {[%clk 0:00:51]} 26. Re1 {[%clk 0:00:52]}  Bc4 {[%clk 0:00:46]} 27. Nc3 {[%clk 0:00:52]}  Nd3 {[%clk 0:00:44]} 28. Reb1 {[%clk 0:00:52]}  Nxc5 {[%clk 0:00:40]} 29. Bxc5 {[%clk 0:00:49]}  Bxc3 {[%clk 0:00:40]} 30. Rxa8 {[%clk 0:00:46]}  Rxa8 {[%clk 0:00:39]} 31. Rxb7 {[%clk 0:00:42]}  Be5 {[%clk 0:00:33]} 32. g4 {[%clk 0:00:32]}  Ra1+ {[%clk 0:00:30]} 33. Kf2 {[%clk 0:00:32]}  Ra2+ {[%clk 0:00:31]} 34. Kg1 {[%clk 0:00:32]}  Bxd5 {[%clk 0:00:23]} 35. Rb8+ {[%clk 0:00:29]}  Kg7 {[%clk 0:00:23]} 36. gxf5 {[%clk 0:00:30]}  Bg3 {[%clk 0:00:22]} 37. Bd4+ {[%clk 0:00:29]}  Kh6 {[%clk 0:00:20]} 38. Rd8 {[%clk 0:00:22]}  Bc4 {[%clk 0:00:16]} 39. Bxe4 {[%clk 0:00:19]}  Rc2 {[%clk 0:00:13]} 40. Bxc2 {[%clk 0:00:19]} 1-0


[Site "https://www.chess.com"]